bitfinex-derivatives/quotes_SOLF0:USTF0_20241029
["timestamp","ask_amount","ask_price","bid_price","bid_amount"]
[1730167706940,2.7958,178.96,178.9,12.10502029]
[1730167707554,2.78864793,178.99,178.9,12.10502029]
[1730167707555,2.7955,178.97,178.9,12.10502029]
[1730167707745,13.35942029,179.01,178.9,12.10502029]
[1730167707940,4.64,179.0,178.92,2.7962]
[1730167708148,12.10502029,178.98,178.87,16.74502029]
[1730167708460,4.64,179.0,178.89,12.10502029]
[1730167709858,2.4283,179.02,178.92,12.10502029]
[1730167710052,2.4283,179.02,178.92,16.74502029]
[1730167710650,2.7949,179.01,178.94,12.10502029]
[1730167710850,1.2175,179.02,178.94,12.10502029]
[1730167711258,2.7949,179.01,178.97,2.7955]
[1730167713062,2.7949,179.01,178.96,2.7956]
[1730167713266,1.1877,179.06,178.93,1.1964]
[1730167713267,2.7942,179.06,178.98,12.10502029]
[1730167713568,2.5118,179.1,179.02,2.7947]
[1730167713767,2.7941,179.07,178.98,16.74502029]
[1730167714263,4.64,179.09,178.99,2.7951]
[1730167714264,2.7944,179.05,178.99,2.7951]
[1730167714769,16.74502029,179.09,178.98,12.10502029]
[1730167715966,2.7942,179.06,179.0,2.795]
[1730167716165,12.10502029,179.09,178.98,12.10502029]
[1730167716775,2.7941,179.07,179.02,2.7946]
[1730167717968,2.7942,179.06,179.02,2.7946]
[1730167718168,1.2518,179.08,179.0,2.795]
[1730167718366,12.10502029,179.06,178.96,12.10502029]
[1730167718558,2.7946,179.03,178.96,12.10502029]
[1730167718763,12.10502029,179.06,178.99,2.7951]
[1730167719361,2.7945,179.04,178.99,2.7951]
[1730167719675,1.2518,179.08,178.98,12.10502029]
[1730167719873,1.2518,179.08,179.04,2.7943]
[1730167720076,13.28922029,179.11,179.04,2.7943]
[1730167720077,5.8697,179.1,179.04,2.7943]
[1730167720469,2.7938,179.09,179.04,2.7943]
[1730167721162,5.8697,179.1,179.0,4.64]
[1730167721371,2.79342555,179.14,179.01,12.10502029]
[1730167721570,12.10502029,179.12,179.01,12.10502029]
[1730167722369,2.7937,179.09,179.05,2.7943]
[1730167723473,2.7935,179.1,179.01,12.10502029]
[1730167723881,2.7935,179.1,179.01,13.33022029]
[1730167724267,2.7935,179.1,179.06,2.794]
[1730167725073,2.7934,179.11,179.03,12.10502029]
[1730167726374,2.7934,179.11,179.06,2.794]
[1730167726985,2.7936,179.1,179.06,2.794]
[1730167728579,2.7936,179.1,179.04,2.7943]
[1730167728774,12.10502029,179.12,179.03,16.74502029]
[1730167729181,12.10502029,179.12,179.03,12.10502029]
[1730167730372,2.7937,179.09,179.05,2.7943]
[1730167730577,12.10502029,179.12,179.01,13.33022029]
[1730167730780,5.2095,179.13,179.08,2.7938]
[1730167730977,5.2095,179.13,179.06,12.10502029]
[1730167730978,2.4164,179.13,179.06,12.10502029]
[1730167731779,5.2095,179.13,179.08,2.7938]
[1730167732075,5.2095,179.13,179.06,12.10502029]
[1730167732682,2.4164,179.13,179.06,12.10502029]
[1730167733078,5.2096,179.13,179.08,2.7937]
[1730167733780,5.2096,179.13,179.09,2.7936]
[1730167735786,4.64,179.15,179.09,2.7935]
[1730167736385,7.38329209,179.15,179.09,2.7935]
[1730167736587,10.17599209,179.15,179.11,2.7932]
[1730167736976,10.17599209,179.15,179.08,12.10502029]
[1730167737182,7.38329209,179.15,179.08,12.10502029]
[1730167737383,2.74329209,179.15,179.08,12.10502029]
[1730167737584,2.7929,179.14,179.1,2.7935]
[1730167737785,2.74397206,179.13,179.1,2.7935]
[1730167737993,2.74397206,179.13,179.08,12.10502029]
[1730167738190,2.4452,179.16,179.08,12.10502029]
[1730167738490,2.7928,179.15,179.11,2.7932]
[1730167738692,5.54963094,179.15,179.11,2.7932]
[1730167738892,10.5882194,179.33,179.11,2.7932]
[1730167738893,3.7921,179.2,179.11,16.74502029]
[1730167739094,1.0,179.2,179.11,16.74502029]
[1730167739499,2.7922,179.19,179.14,2.7928]
[1730167739791,1.0,179.2,179.14,2.7928]
[1730167740387,1.0,179.2,179.09,12.10502029]
[1730167740589,16.74502029,179.19,179.12,2.7932]
[1730167740895,2.7926,179.17,179.12,2.7932]
[1730167742097,4.64,179.19,179.09,12.10502029]
[1730167742497,16.74502029,179.19,179.09,12.10502029]
[1730167743003,4.64,179.19,179.11,12.10502029]
[1730167743801,4.64,179.19,179.09,12.10502029]
[1730167744297,2.7924,179.17,179.13,2.793]
[1730167744596,1.0,179.2,179.11,12.10502029]
[1730167744905,1.0,179.2,179.18,12.10502029]
[1730167745093,1.2709,179.3,179.18,12.10502029]
[1730167745292,1.2709,179.3,179.16,4.64]
[1730167745293,1.2709,179.3,179.2,12.10502029]
[1730167745493,1.2709,179.3,179.21,4.64]
[1730167745692,4.0614,179.3,179.23,2.7914]
[1730167745894,5.27624696,179.33,179.25,12.10502029]
[1730167746090,7.73662415,179.34,179.26,4.64]
[1730167746297,2.7899,179.33,179.28,12.10502029]
[1730167746503,20.54667659,179.36,179.31,12.10502029]
[1730167746804,20.54667659,179.36,179.27,4.64]
[1730167746805,20.54667659,179.36,179.33,12.10502029]
[1730167747101,4.64,179.36,179.21,177.20764976]
[1730167747293,4.64,179.36,179.23,12.10502029]
[1730167747493,43.33685355,179.39,179.28,12.10502029]
[1730167747697,31.23183326,179.39,179.33,12.10502029]
[1730167748299,31.23183326,179.39,179.26,4.64]
[1730167748502,2.7892,179.38,179.31,12.10502029]
[1730167748702,4.92,179.38,179.31,12.10502029]
[1730167748908,12.10502029,179.36,179.26,12.10502029]
[1730167749102,2.7898,179.34,179.26,2.791]
[1730167749309,12.10502029,179.36,179.24,12.10502029]
[1730167749498,4.92,179.35,179.24,12.10502029]
[1730167749699,4.92,179.35,179.26,14.89592029]
[1730167750102,2.7895,179.37,179.27,2.7907]
[1730167750305,4.92,179.38,179.29,12.10502029]
[1730167750808,12.10502029,179.37,179.26,12.10502029]
[1730167751004,12.10502029,179.34,179.23,12.10502029]
[1730167751202,4.92,179.33,179.23,12.10502029]
[1730167751704,4.92,179.33,179.26,12.10502029]
[1730167752106,17.02502029,179.33,179.23,12.10502029]
[1730167752313,17.02502029,179.33,179.22,4.92]
[1730167752511,2.7906,179.29,179.21,14.89672029]
[1730167752809,12.10502029,179.31,179.21,12.10502029]
[1730167753006,12.10502029,179.31,179.19,4.92]
[1730167753007,2.482,179.32,179.23,12.10502029]
[1730167753213,7.402,179.32,179.23,12.10502029]
[1730167753404,2.7896,179.36,179.28,2.7906]
[1730167753599,17.02502029,179.37,179.28,2.7906]
[1730167754201,17.02502029,179.37,179.26,12.10502029]
[1730167754202,17.02502029,179.37,179.26,14.89602029]
[1730167754404,12.10502029,179.35,179.24,17.02502029]
[1730167754603,2.7905,179.3,179.22,12.10502029]
[1730167755408,4.92,179.31,179.22,12.10502029]
[1730167755611,2.7906,179.29,179.22,12.10502029]
[1730167755807,4.92,179.31,179.22,12.10502029]
[1730167756512,4.92,179.31,179.23,2.7915]
[1730167757217,4.92,179.31,179.26,2.791]
[1730167757516,4.92,179.31,179.24,12.10502029]
[1730167758515,4.92,179.31,179.26,2.791]
[1730167758817,4.92,179.33,179.24,12.10502029]
[1730167759211,2.3688,179.38,179.24,12.10502029]
[1730167759412,2.3688,179.38,179.29,12.10502029]
[1730167759715,2.3688,179.38,179.26,12.10502029]
[1730167759716,2.3688,179.38,179.27,4.92]
[1730167760116,2.7897,179.35,179.28,2.7906]
[1730167760313,2.7897,179.35,179.27,4.92]
[1730167760314,2.3688,179.38,179.27,4.92]
[1730167760515,6.1347,179.41,179.3,12.10502029]
[1730167760822,12.10502029,179.46,179.35,12.10502029]
[1730167761012,4.92,179.45,179.35,12.10502029]
[1730167761208,2.7891,179.39,179.35,12.10502029]
[1730167761415,4.92,179.45,179.35,12.10502029]
[1730167761708,2.7886,179.42,179.35,12.10502029]
[1730167761918,4.92,179.45,179.37,12.10502029]
[1730167762111,4.92,179.45,179.34,12.10502029]
[1730167762423,2.7886,179.42,179.37,2.7893]
[1730167762622,4.92,179.45,179.34,12.10502029]
[1730167763318,12.10502029,179.43,179.32,12.10502029]
[1730167763819,2.789,179.4,179.32,12.10502029]
[1730167764027,4.92,179.45,179.35,12.10502029]
[1730167765115,12.10502029,179.44,179.32,12.10502029]
[1730167765525,2.789,179.4,179.35,2.7895]
[1730167765821,12.10502029,179.44,179.32,12.10502029]
[1730167766318,4.92,179.45,179.35,12.10502029]
[1730167766510,3.7667,179.48,179.37,12.10502029]
[1730167766716,3.7667,179.48,179.33,12.10502029]
[1730167766717,3.7667,179.48,179.39,12.10502029]
[1730167766917,4.92,179.47,179.39,12.10502029]
[1730167767117,4.92,179.47,179.36,4.92]
[1730167767118,17.02502029,179.47,179.37,12.10502029]
[1730167767517,17.02502029,179.47,179.36,4.92]
[1730167767518,4.92,179.47,179.4,12.10502029]
[1730167767823,4.92,179.47,179.38,12.10502029]
[1730167768325,4.92,179.47,179.36,4.92]
[1730167768326,4.92,179.47,179.4,12.10502029]
[1730167768514,3.7667,179.48,179.4,12.10502029]
[1730167768710,2.5715,179.48,179.4,12.10502029]
[1730167768913,2.7882,179.46,179.41,2.7889]
[1730167769116,1.3007,179.57,179.37,12.10502029]
[1730167769428,2.7889,179.42,179.37,14.89452029]
[1730167769745,2.7889,179.42,179.24,12.10502029]
[1730167769746,5.22,179.48,179.35,12.10502029]
[1730167769925,2.7886,179.44,179.38,2.7893]
[1730167770118,5.22,179.48,179.37,12.10502029]
[1730167770425,5.22,179.48,179.34,5.22]
[1730167770426,2.7889,179.42,179.36,2.7896]
[1730167770732,12.10502029,179.46,179.35,12.10502029]
[1730167770917,12.10502029,179.44,179.36,2.7897]
[1730167771231,12.10502029,179.44,179.34,5.22]
[1730167771232,12.10502029,179.41,179.3,12.10502029]
[1730167771532,12.10502029,179.39,179.26,12.10502029]
[1730167771728,12.10502029,179.36,179.26,12.10502029]
[1730167771923,5.2,179.35,179.26,12.10502029]
[1730167772118,2.7903,179.33,179.27,2.7911]
[1730167772431,2.7903,179.33,179.26,12.10502029]
[1730167772432,5.2,179.35,179.26,12.10502029]
[1730167772726,2.7907,179.31,179.26,12.10502029]
[1730167772928,2.7907,179.31,179.25,2.7913]
[1730167772929,5.2,179.3,179.2,12.10502029]
[1730167773529,5.2,179.3,179.15,12.10502029]
[1730167773530,12.10502029,179.26,179.15,12.10502029]
[1730167773732,5.2,179.25,179.17,12.10502029]
[1730167774033,5.2,179.25,179.17,14.89772029]
[1730167774034,7.9916,179.25,179.17,14.89772029]
[1730167774225,7.9916,179.25,179.17,12.10502029]
[1730167774531,2.6057,179.28,179.15,19.31464078]
[1730167774726,5.22,179.27,179.18,19.31464078]
[1730167774916,2.7917,179.24,179.18,19.31464078]
[1730167775117,5.22,179.27,179.18,19.31464078]
[1730167775626,222.38001287,179.34,179.21,19.31464078]
[1730167775627,2.7908,179.3,179.21,19.31464078]
[1730167775831,5.22,179.3,179.21,19.31464078]
[1730167776227,5.22,179.32,179.24,19.31464078]
[1730167776631,1.2388,179.37,179.27,19.31464078]
[1730167776929,7.73221851,179.43,179.33,19.31464078]
[1730167777140,50.54647404,179.48,179.33,19.31464078]
[1730167777141,8.8539,179.45,179.33,19.31464078]
[1730167777332,2.7889,179.42,179.35,2.7899]
[1730167777843,8.8539,179.45,179.33,19.31464078]
[1730167778042,8.8539,179.45,179.3,24.53464078]
[1730167778233,8.8539,179.45,179.34,19.31464078]
[1730167778425,2.7887,179.43,179.36,2.7897]
[1730167778925,8.8539,179.45,179.3,24.53464078]
[1730167779125,2.789,179.41,179.3,24.53464078]
[1730167779330,8.8539,179.45,179.3,24.53464078]
[1730167779538,2.7889,179.42,179.34,2.7899]
[1730167779734,2.7889,179.42,179.3,24.53464078]
[1730167779941,8.8539,179.45,179.34,19.31464078]
[1730167780844,2.7888,179.42,179.35,2.7899]
[1730167781038,28.16854078,179.45,179.3,19.31464078]
[1730167781344,2.7895,179.38,179.31,2.7905]
[1730167781728,2.7895,179.38,179.3,19.31464078]
[1730167781932,2.7895,179.38,179.32,2.7902]
[1730167782130,8.0093,179.39,179.32,2.7902]
[1730167782644,5.22,179.39,179.3,19.31464078]
[1730167782845,3.6339,179.45,179.3,19.31464078]
[1730167783050,5.22,179.44,179.34,2.79]
[1730167783253,8.0086,179.44,179.3,19.31464078]
[1730167783441,2.7886,179.44,179.35,19.31464078]
[1730167783639,8.8539,179.45,179.4,2.7891]
[1730167783845,11.6422,179.45,179.4,2.7891]
[1730167784035,7.73221851,179.54,179.35,19.31464078]
[1730167784239,1.202,179.49,179.36,19.31464078]
[1730167784433,5.22,179.48,179.36,19.31464078]
[1730167784640,5.22,179.48,179.39,19.31464078]
[1730167784949,2.788,179.47,179.39,19.31464078]
[1730167785148,2.788,179.47,179.36,19.31464078]
[1730167785445,5.22,179.48,179.36,19.31464078]
[1730167785446,2.7888,179.43,179.36,19.31464078]
[1730167785653,5.22,179.48,179.3,19.31464078]
[1730167785654,24.53464078,179.48,179.3,19.31464078]
[1730167785951,24.53464078,179.48,179.32,5.22]
[1730167786244,24.53464078,179.48,179.36,2.7897]
[1730167786546,2.7896,179.38,179.32,2.7903]
[1730167786846,19.31464078,179.44,179.3,19.31464078]
[1730167786847,5.2,179.39,179.3,19.31464078]
[1730167788540,2.7896,179.37,179.33,2.7902]
[1730167788743,5.2,179.39,179.3,19.31464078]
[1730167789743,5.2,179.39,179.35,2.7898]
[1730167790145,19.31464078,179.47,179.3,24.51464078]
[1730167790351,5.2,179.46,179.35,19.31464078]
[1730167790742,2.7886,179.44,179.35,19.31464078]
[1730167790942,7.73221851,179.53,179.3,24.51464078]
[1730167790943,7.73221851,179.53,179.39,19.31464078]
[1730167791150,1.2553,179.54,179.39,19.31464078]
[1730167791151,19.31464078,179.54,179.39,19.31464078]
[1730167791361,5.2,179.53,179.39,19.31464078]
[1730167791654,5.2,179.52,179.39,19.31464078]
[1730167791862,6.4152,179.52,179.39,19.31464078]
[1730167792351,6.4152,179.52,179.42,19.31464078]
[1730167792543,2.7875,179.51,179.44,2.7884]
[1730167792746,1.2152,179.52,179.42,24.51464078]
[1730167793152,1.2553,179.53,179.46,2.7881]
[1730167793457,1.2553,179.53,179.45,19.31464078]
[1730167793660,1.2553,179.53,179.39,19.31464078]
[1730167793955,1.2553,179.53,179.42,19.31464078]
[1730167794164,5.2,179.54,179.42,19.31464078]
[1730167794346,6.411,179.56,179.45,19.31464078]
[1730167794658,6.411,179.56,179.45,24.51464078]
[1730167794839,6.411,179.56,179.49,2.7877]
[1730167795039,6.411,179.56,179.45,24.51464078]
[1730167795250,1.1809,179.58,179.39,19.31464078]
[1730167795251,2.7876,179.5,179.39,5.2]
[1730167795556,2.4205,179.55,179.45,19.31464078]
[1730167795854,244.20660607,179.6,179.45,24.51464078]
[1730167796054,5.2,179.59,179.49,2.7876]
[1730167796255,5.2,179.59,179.48,19.31464078]
[1730167796552,5.2,179.59,179.47,2.7879]
[1730167796746,5.2,179.59,179.45,24.51464078]
[1730167797543,2.7869,179.55,179.45,24.51464078]
[1730167797750,2.7869,179.55,179.5,2.7874]
[1730167799762,5.2,179.59,179.46,5.38]
[1730167799952,5.2,179.59,179.45,19.31464078]
[1730167800156,5.2,179.59,179.46,2.788]
[1730167800455,5.2,179.59,179.45,24.69464078]
[1730167800754,1.2396,179.6,179.47,19.31464078]
[1730167800950,1.2396,179.6,179.45,5.38]
[1730167800951,1.2396,179.6,179.5,19.31464078]
[1730167801152,2.7863,179.59,179.54,2.7868]
[1730167801354,24.69464078,179.68,179.53,19.31464078]
[1730167801853,24.69464078,179.68,179.58,2.7863]
[1730167801854,2.7857,179.62,179.58,2.7863]
[1730167802060,24.69464078,179.68,179.57,5.38]
[1730167802254,24.69464078,179.68,179.53,2.787]
[1730167802255,19.31464078,179.65,179.53,2.787]
[1730167802459,1.251,179.64,179.5,24.69464078]
[1730167802755,7.73221851,179.78,179.56,19.31464078]
[1730167803058,19.31464078,179.72,179.57,5.38]
[1730167803256,2.7855,179.64,179.57,5.38]
[1730167803656,2.7855,179.64,179.6,2.786]
[1730167803855,2.7853,179.65,179.57,5.38]
[1730167804158,19.31464078,179.69,179.57,5.38]
[1730167804355,19.31464078,179.69,179.56,19.31464078]
[1730167804356,2.7863,179.58,179.54,5.38]
[1730167804660,5.38,179.66,179.54,5.38]
[1730167804855,1.2239,179.65,179.55,2.7867]
[1730167805367,6.6039,179.65,179.53,19.31464078]
[1730167805761,6.6039,179.65,179.52,5.38]
[1730167806062,2.7857,179.62,179.56,19.31464078]
[1730167806260,1.2239,179.65,179.56,19.31464078]
[1730167806852,1.2239,179.65,179.57,2.7864]
[1730167807255,1.2239,179.65,179.56,24.69464078]
[1730167807460,5.38,179.67,179.56,27.48124078]
[1730167807664,5.81583199,179.81,179.58,19.31464078]
[1730167807861,1.2388,179.71,179.58,19.31464078]
[1730167808060,19.31464078,179.76,179.61,19.31464078]
[1730167808261,19.31464078,179.79,179.64,19.31464078]
[1730167808579,5.38,179.78,179.64,19.31464078]
[1730167809160,5.38,179.78,179.62,5.38]
[1730167809161,5.81275577,179.89,179.68,19.31464078]
[1730167809371,24.69464078,179.88,179.71,19.31464078]
[1730167809669,24.69464078,179.88,179.74,19.31464078]
[1730167809858,19.31464078,179.85,179.71,19.31464078]
[1730167810058,9.1655,179.84,179.71,19.31464078]
[1730167810260,9.1655,179.84,179.64,19.31464078]
[1730167810261,19.31464078,179.82,179.62,5.38]
[1730167810467,19.31464078,179.82,179.68,19.31464078]
[1730167810673,19.31464078,179.82,179.64,19.31464078]
[1730167810674,5.38,179.81,179.71,19.31464078]
[1730167810870,5.38,179.85,179.74,19.31464078]
[1730167811071,2.7826,179.82,179.74,19.31464078]
[1730167811372,5.38,179.82,179.74,19.31464078]
[1730167811576,24.69464078,179.82,179.67,24.69464078]
[1730167811759,24.69464078,179.82,179.67,19.31464078]
[1730167811958,19.31464078,179.79,179.64,19.31464078]
[1730167812267,9.1022,179.78,179.67,19.31464078]
[1730167812469,9.1022,179.78,179.7,19.31464078]
[1730167812870,2.7835,179.77,179.7,19.31464078]
[1730167813168,5.38,179.77,179.7,19.31464078]
[1730167813373,5.38,179.77,179.73,2.784]
[1730167813565,2.438,179.78,179.73,2.784]
[1730167813766,2.438,179.78,179.7,19.31464078]
[1730167814062,5.38,179.79,179.72,19.31464078]
[1730167815073,3.8478,179.83,179.72,19.31464078]
[1730167815275,5.38,179.82,179.72,19.31464078]
[1730167816472,5.38,179.82,179.7,19.31464078]
[1730167816775,19.31464078,179.79,179.64,19.31464078]
[1730167816973,19.31464078,179.81,179.6,19.31464078]
[1730167816974,19.31464078,179.76,179.6,19.31464078]
[1730167817175,5.38,179.75,179.6,19.31464078]
[1730167817572,3.763,179.74,179.6,19.31464078]
[1730167817978,5.38,179.73,179.6,19.31464078]
[1730167818173,3.763,179.74,179.64,19.31464078]
[1730167818372,5.38,179.73,179.64,19.31464078]
[1730167818681,3.763,179.74,179.66,19.31464078]
[1730167818876,2.5206,179.74,179.66,19.31464078]
[1730167819076,38.76432185,179.92,179.7,19.31464078]
[1730167819077,5.38,179.79,179.7,19.31464078]
[1730167819281,2.7835,179.77,179.7,19.31464078]
[1730167819483,5.38,179.79,179.7,19.31464078]
[1730167819683,2.7835,179.76,179.71,2.7842]
[1730167819878,5.38,179.79,179.7,19.31464078]
[1730167820078,79.47464078,179.87,179.72,19.31464078]
[1730167820379,2.7828,179.81,179.73,2.784]
[1730167820682,6.6787,179.8,179.7,19.31464078]
[1730167820884,2.7834,179.77,179.71,2.7842]
[1730167821072,6.6787,179.8,179.7,19.31464078]
[1730167821472,2.7832,179.78,179.73,2.7839]
[1730167821673,1.2987,179.8,179.73,19.31464078]
[1730167821875,5.38,179.83,179.73,19.31464078]
[1730167822076,8.1626,179.83,179.78,2.7832]
[1730167822384,8.1626,179.83,179.73,19.31464078]
[1730167822385,5.38,179.83,179.73,19.31464078]
[1730167822578,8.1626,179.83,179.78,2.783]
[1730167822771,1.2987,179.85,179.79,19.31464078]
[1730167823685,2.7824,179.84,179.79,22.09764078]
[1730167824184,1.2987,179.85,179.79,19.31464078]
[1730167824481,2.7821,179.86,179.81,2.7826]
[1730167824983,5.38,179.88,179.75,19.31464078]
[1730167825482,5.38,179.88,179.74,5.38]
[1730167825483,5.38,179.88,179.78,19.31464078]
[1730167825680,60.14,179.96,179.78,19.31464078]
[1730167825876,6.93,179.9,179.81,19.31464078]
[1730167826077,5.38,179.89,179.81,19.31464078]
[1730167826278,2.7821,179.86,179.81,19.31464078]
[1730167826677,5.38,179.89,179.78,19.31464078]
[1730167826883,2.7822,179.85,179.8,2.7828]
[1730167827080,6.6109,179.89,179.81,19.31464078]
[1730167827386,1.2309,179.89,179.81,19.31464078]
[1730167827790,1.2309,179.89,179.79,24.69464078]
[1730167827986,2.4742,179.89,179.79,19.31464078]
[1730167828378,2.7819,179.87,179.83,2.7824]
[1730167828580,2.4742,179.89,179.83,2.7824]
[1730167828879,2.782,179.86,179.79,19.31464078]
[1730167829087,2.4742,179.89,179.79,19.31464078]
[1730167829483,2.7822,179.85,179.8,2.7828]
[1730167829682,2.4742,179.89,179.79,19.31464078]
[1730167829883,2.4742,179.89,179.75,19.31464078]
[1730167830081,2.7828,179.81,179.75,19.31464078]
[1730167830280,5.6,179.83,179.75,19.31464078]
[1730167830484,2.4742,179.89,179.75,19.31464078]
[1730167830678,5.6,179.88,179.79,2.783]
[1730167830894,5.6,179.88,179.78,19.31464078]
[1730167831090,2.7826,179.82,179.78,2.7832]
[1730167831389,5.6,179.88,179.75,19.31464078]
[1730167831582,5.6,179.88,179.79,19.31464078]
[1730167831781,2.7823,179.84,179.79,22.09754078]
[1730167831984,5.6,179.88,179.76,5.6]
[1730167832490,2.7826,179.83,179.78,2.7831]
[1730167832880,2.7822,179.85,179.79,2.783]
[1730167833086,5.6,179.88,179.76,5.6]
[1730167833286,5.6,179.88,179.79,19.31464078]
[1730167833487,5.6,179.88,179.8,2.7829]
[1730167833689,1.2002,179.89,179.81,19.31464078]
[1730167833888,2.7818,179.88,179.84,2.7822]
[1730167834080,1.2002,179.89,179.81,19.31464078]
[1730167834483,1.2002,179.89,179.82,2.7825]
[1730167835185,2.782,179.86,179.82,2.7825]
[1730167835386,2.782,179.86,179.81,19.31464078]
[1730167835685,2.7823,179.85,179.8,2.7828]
[1730167835880,1.2002,179.89,179.78,24.91464078]
[1730167836092,1.2002,179.89,179.79,2.783]
[1730167836294,1.2002,179.89,179.75,19.31464078]
[1730167836690,1.2002,179.89,179.78,2.7832]
[1730167836892,2.7827,179.82,179.78,2.7832]
[1730167837192,5.6,179.85,179.77,2.7833]
[1730167837392,1.2002,179.89,179.78,19.31464078]
[1730167837393,5.6,179.87,179.78,19.31464078]
[1730167837592,2.7823,179.84,179.78,19.31464078]
[1730167837897,5.6,179.87,179.78,2.7831]
[1730167838495,5.6,179.87,179.77,2.7833]
[1730167838688,5.6,179.87,179.75,19.31464078]
[1730167838897,5.6,179.87,179.78,19.31464078]
[1730167839196,1.55,179.9,179.81,19.31464078]
[1730167840089,2.7819,179.87,179.83,2.7824]
[1730167840285,1.55,179.9,179.81,19.31464078]
[1730167840686,0.3,179.9,179.81,19.31464078]
[1730167841197,0.3,179.9,179.84,22.09684078]
[1730167841388,0.3,179.9,179.84,19.31464078]
[1730167842199,2.7818,179.88,179.84,19.31464078]
[1730167842502,0.3,179.9,179.84,19.31464078]
[1730167842892,0.3,179.9,179.89,19.31464078]
[1730167843092,7.70021989,180.13,180.0,22.31464078]
[1730167843300,0.0555093,180.15,180.0,22.31464078]
[1730167843491,5.6,180.14,180.0,22.31464078]
[1730167843691,0.0555093,180.15,180.0,22.31464078]
[1730167844098,5.92,180.14,180.0,3.0]
[1730167844292,5.92,180.14,180.01,19.31464078]
[1730167844491,0.0555093,180.15,180.01,19.31464078]
[1730167844492,2.778,180.12,180.05,2.779]
[1730167844687,0.0555093,180.15,180.04,19.31464078]
[1730167844895,0.0555093,180.15,180.03,19.31464078]
[1730167845091,0.0555093,180.15,180.07,19.31464078]
[1730167845291,0.0555093,180.15,180.0,3.0]
[1730167845492,0.0555093,180.15,180.03,19.31464078]
[1730167845793,0.0555093,180.15,180.04,6.24]
[1730167846113,0.0555093,180.15,180.0,3.0]
[1730167846393,0.0555093,180.15,180.03,19.31464078]
[1730167846600,2.8330093,180.15,180.07,2.7786]
[1730167846894,2.8330093,180.15,180.06,6.22]
[1730167846895,0.0555093,180.15,180.06,6.22]
[1730167847696,2.7777,180.14,180.06,6.22]
[1730167847901,0.0555093,180.15,180.06,6.22]
[1730167848106,0.0555093,180.15,180.01,31.25394722]
[1730167848301,0.0555093,180.15,180.0,3.0]
[1730167848302,6.22,180.14,180.0,9.22]
[1730167848903,2.778,180.12,180.04,2.7791]
[1730167849202,6.2755093,180.15,180.01,31.25394722]
[1730167849608,0.0555093,180.15,180.01,31.25394722]
[1730167850191,0.0555093,180.15,180.06,2.7788]
[1730167850394,0.0555093,180.15,180.01,31.25394722]
[1730167850701,0.0555093,180.15,180.02,6.22]
[1730167851300,0.0555093,180.15,180.05,31.25394722]
[1730167852403,2.7777,180.14,180.07,2.7787]
[1730167852596,0.0555093,180.15,180.05,31.25394722]
[1730167852796,0.0555093,180.15,180.11,2.778]
[1730167852996,0.0555093,180.15,180.05,31.25394722]
[1730167853201,0.0555093,180.15,180.06,6.22]
[1730167853395,2.7777,180.14,180.07,2.7787]
[1730167853595,0.0555093,180.15,180.06,6.22]
[1730167853991,2.8330093,180.15,180.08,2.7784]
[1730167854197,0.0555093,180.15,180.06,6.22]
[1730167854496,2.7779,180.13,180.07,8.9987]
[1730167854696,0.0555093,180.15,180.05,31.25394722]
[1730167854902,0.0555093,180.15,180.05,37.47394722]
[1730167855706,0.0555093,180.15,180.0,3.0]
[1730167855707,0.0555093,180.15,180.03,6.22]
[1730167856200,2.7782,180.11,180.05,2.779]
[1730167856401,31.30945652,180.15,180.02,31.25394722]
[1730167856600,0.0555093,180.15,180.02,31.25394722]
[1730167856906,0.0555093,180.15,180.04,2.7792]
[1730167857105,0.0555093,180.15,180.02,31.25394722]
[1730167857407,2.7785,180.09,180.03,2.7793]
[1730167857608,2.7785,180.09,180.02,31.25394722]
[1730167857609,0.0555093,180.15,180.02,31.25394722]
[1730167858207,2.7787,180.08,180.02,34.03334722]